bitfinex-derivatives/quotes_BTCF0:USTF0_20241128
["timestamp","ask_amount","ask_price","bid_price","bid_amount"]
[1732764364837,7.49e-05,95314.0,95308.0,0.2031392]
[1732764365029,7.49e-05,95314.0,95308.0,0.1507282]
[1732764365231,7.49e-05,95314.0,95312.0,0.052409]
[1732764365825,0.0020749,95314.0,95312.0,0.052409]
[1732764366028,0.0040749,95314.0,95312.0,0.052409]
[1732764366224,0.00835673,95313.0,95312.0,0.052409]
[1732764367328,0.00835673,95313.0,95312.0,0.2031372]
[1732764367640,0.0040749,95314.0,95312.0,0.2031372]
[1732764367840,0.0040749,95314.0,95313.0,0.00424047]
[1732764367841,0.0080749,95314.0,95313.0,0.00424047]
[1732764368434,0.0040749,95314.0,95313.0,0.00424047]
[1732764369132,0.0040749,95314.0,95313.0,0.15496867]
[1732764369332,0.0050749,95314.0,95313.0,0.15496867]
[1732764369835,7.49e-05,95314.0,95313.0,0.15496867]
[1732764370036,0.0020749,95314.0,95313.0,0.15496867]
[1732764370642,0.0070749,95314.0,95313.0,0.15596867]
[1732764371140,0.0040749,95314.0,95313.0,0.15496867]
[1732764372037,0.0060749,95314.0,95313.0,0.15496867]
[1732764372637,0.0090749,95314.0,95313.0,0.15596867]
[1732764373735,0.0090749,95314.0,95313.0,0.00424047]
[1732764373736,0.0040749,95314.0,95313.0,0.00424047]
[1732764373935,0.6846349,95314.0,95313.0,0.001]
[1732764374133,0.6846349,95314.0,95301.0,0.052415]
[1732764374134,0.052414,95304.0,95301.0,0.052415]
[1732764374444,0.17744,95304.0,95302.0,0.052414]
[1732764374640,0.17744,95304.0,95294.0,0.1507282]
[1732764374842,0.052417,95299.0,95294.0,0.1507282]
[1732764375144,0.052417,95299.0,95297.0,0.052417]
[1732764375639,0.052414,95303.0,95291.0,0.05242]
[1732764375846,0.17744,95304.0,95296.0,0.052418]
[1732764376139,0.003,95299.0,95296.0,0.052418]
[1732764376339,0.3608,95297.0,95296.0,0.052418]
[1732764377543,0.3648,95297.0,95296.0,0.052418]
[1732764378532,0.3678,95297.0,95293.0,0.00424047]
[1732764378836,0.01408801,95296.0,95293.0,0.00424047]
[1732764379037,0.01408801,95296.0,95277.0,0.0158049]
[1732764379038,0.052422,95289.0,95282.0,0.052425]
[1732764379442,0.052422,95289.0,95288.0,0.1507282]
[1732764379645,0.06190314,95289.0,95288.0,0.1507282]
[1732764379945,0.06190314,95289.0,95272.0,0.032]
[1732764379946,1.16256114,95289.0,95257.0,0.00056]
[1732764380146,0.3608,95273.0,95269.0,0.2031602]
[1732764380336,0.02356915,95272.0,95269.0,0.1507282]
[1732764381444,0.03913799,95272.0,95269.0,0.1507282]
[1732764381644,0.00948114,95271.0,95269.0,0.1527282]
[1732764382748,0.06191314,95271.0,95269.0,0.1527282]
[1732764382948,0.00948114,95270.0,95261.0,0.084437]
[1732764383537,0.00948114,95270.0,95269.0,0.007]
[1732764384249,0.01048114,95270.0,95269.0,0.002]
[1732764384442,0.06410234,95270.0,95261.0,0.091437]
[1732764384638,0.06210233,95269.0,95261.0,0.091437]
[1732764384847,0.00966922,95268.0,95261.0,0.091437]
[1732764385045,0.00966922,95267.0,95261.0,0.089437]
[1732764385252,0.00966922,95266.0,95261.0,0.089437]
[1732764385544,0.00966922,95265.0,95261.0,0.032]
[1732764385749,0.00966922,95264.0,95261.0,0.032]
[1732764385949,0.00966922,95263.0,95261.0,0.032]
[1732764386150,0.00966922,95262.0,95261.0,0.032]
[1732764387136,0.00966922,95262.0,95261.0,0.037]
[1732764387546,0.01066922,95262.0,95261.0,0.037]
[1732764387847,0.01166922,95262.0,95261.0,0.037]
[1732764389550,0.01166922,95262.0,95261.0,0.005]
[1732764391153,0.01179601,95262.0,95261.0,0.005]
[1732764392947,0.37259601,95262.0,95261.0,0.005]
[1732764393258,0.38826963,95262.0,95261.0,0.005]
[1732764394344,0.38726963,95262.0,95257.0,0.0324]
[1732764394645,0.3608,95262.0,95261.0,0.003]
[1732764394847,0.38691926,95262.0,95261.0,0.003]
[1732764395552,0.38691926,95262.0,95260.0,0.052437]
[1732764395753,0.02611926,95261.0,95260.0,0.052437]
[1732764396650,0.02611926,95261.0,95257.0,0.0364]
[1732764396851,0.01004587,95260.0,95259.0,0.052438]
[1732764397656,0.01528098,95263.0,95259.0,0.052438]
[1732764397956,0.01009868,95262.0,95259.0,0.052438]
[1732764398257,0.01009868,95261.0,95260.0,0.052437]
[1732764399765,0.01009868,95261.0,95259.0,0.004]
[1732764399945,0.01615789,95268.0,95259.0,0.004]
[1732764399946,0.01009868,95260.0,95259.0,0.004]
[1732764401055,0.19240907,95267.0,95260.0,0.052438]
[1732764401253,0.02477973,95266.0,95260.0,0.052438]
[1732764401449,0.00953066,95265.0,95259.0,0.004]
[1732764401660,0.00953066,95264.0,95262.0,0.052436]
[1732764401955,0.00953066,95263.0,95262.0,0.052436]
[1732764402254,0.00953066,95263.0,95259.0,0.004]
[1732764402453,0.00953066,95262.0,95260.0,0.052438]
[1732764402648,0.00953066,95261.0,95260.0,0.052438]
[1732764404658,0.0160026,95266.0,95263.0,0.052436]
[1732764404955,0.00959423,95265.0,95263.0,0.052436]
[1732764405160,0.00959423,95264.0,95263.0,0.052436]
[1732764406461,0.02494498,95264.0,95263.0,0.052436]
[1732764407163,0.052437,95262.0,95260.0,0.003]
[1732764407349,0.02494498,95261.0,95258.0,0.052439]
[1732764407554,0.02494498,95260.0,95258.0,0.052439]
[1732764407755,0.02494498,95259.0,95258.0,0.052439]
[1732764408662,0.02494498,95259.0,95258.0,0.056439]
[1732764408861,0.02494498,95259.0,95258.0,0.004]
[1732764409070,0.0315029,95259.0,95258.0,0.004]
[1732764411156,0.02494498,95259.0,95258.0,0.004]
[1732764412061,0.17898322,95259.0,95258.0,0.004]
[1732764412364,0.02494498,95259.0,95258.0,0.004]
[1732764412557,0.20214498,95259.0,95258.0,0.004]
[1732764412759,0.02494498,95259.0,95258.0,0.004]
[1732764413158,0.14818033,95259.0,95258.0,0.004]
[1732764413762,0.02494498,95259.0,95258.0,0.004]
[1732764414364,0.02587957,95259.0,95258.0,0.056439]
[1732764416959,0.14912239,95259.0,95258.0,0.056439]
[1732764417159,0.02587957,95259.0,95258.0,0.056439]
[1732764417657,0.02646987,95259.0,95258.0,0.056439]
[1732764418667,0.04251947,95259.0,95258.0,0.056439]
[1732764418864,0.02646987,95259.0,95258.0,0.056439]
[1732764421071,0.03302767,95259.0,95258.0,0.056439]
[1732764421570,0.03302767,95259.0,95258.0,0.004]
[1732764422674,0.052441,95253.0,95252.0,0.18863934]
[1732764422860,0.08546867,95253.0,95252.0,0.18863934]
[1732764423058,0.052443,95250.0,95244.0,0.085546]
[1732764423266,0.052446,95246.0,95244.0,0.0331]
[1732764423566,0.02748382,95245.0,95244.0,0.0331]
[1732764424771,0.02848382,95245.0,95244.0,0.0331]
[1732764425567,0.0350427,95245.0,95244.0,0.0331]
[1732764425772,0.0360427,95245.0,95244.0,0.0331]
[1732764426369,0.02948382,95245.0,95236.0,0.37727117]
[1732764426565,0.05245,95237.0,95236.0,0.37727117]
[1732764426767,0.09596948,95237.0,95236.0,0.37727117]
[1732764427370,0.75573382,95237.0,95236.0,0.37727117]
[1732764427568,0.7622927,95237.0,95236.0,0.37727117]
[1732764428070,0.7622927,95237.0,95236.0,0.32737117]
[1732764428270,0.7622927,95237.0,95236.0,0.27747117]
[1732764428271,0.8133125,95237.0,95236.0,0.27747117]
[1732764428476,1.0622927,95237.0,95236.0,0.27747117]
[1732764428667,1.0622927,95237.0,95236.0,0.27847117]
[1732764428867,0.4472927,95237.0,95236.0,0.27847117]
[1732764429068,0.54208864,95237.0,95236.0,0.27847117]
[1732764429272,0.02748382,95237.0,95236.0,0.63927117]
[1732764429474,0.08128864,95240.0,95239.0,0.052449]
[1732764431376,8.307e-05,95246.0,95245.0,0.052446]
[1732764431680,0.3608,95279.0,95245.0,0.36090575]
[1732764431871,0.3608,95291.0,95264.0,0.774035]
[1732764432173,0.257932,95276.0,95275.0,0.052429]
[1732764432379,0.27674338,95300.0,95275.0,0.413229]
[1732764432575,0.22683594,95285.0,95284.0,0.413224]
[1732764432771,0.27674338,95300.0,95291.0,0.052421]
[1732764433080,0.27674338,95300.0,95291.0,0.413221]
[1732764434172,0.27674338,95300.0,95291.0,0.74385445]
[1732764435773,0.27674338,95300.0,95291.0,0.92069445]
[1732764435972,0.27674338,95300.0,95291.0,0.92269445]
[1732764436174,0.24799412,95292.0,95291.0,0.92269445]
[1732764436376,0.24799412,95292.0,95291.0,0.37859345]
[1732764436576,0.24799412,95292.0,95291.0,0.37959345]
[1732764436878,0.24599412,95292.0,95291.0,0.37959345]
[1732764437288,0.24599412,95292.0,95291.0,0.37659345]
[1732764437476,0.24599412,95292.0,95291.0,0.01579345]
[1732764437676,0.24599412,95292.0,95286.0,0.052423]
[1732764437878,0.24799412,95292.0,95286.0,0.052423]
[1732764438479,0.002,95292.0,95286.0,0.052423]
[1732764438876,0.052425,95283.0,95282.0,0.00056]
[1732764439075,0.052428,95277.0,95254.0,0.1768]
[1732764439274,0.413228,95277.0,95264.0,0.052435]
[1732764439481,0.413228,95277.0,95265.0,0.052434]
[1732764440782,0.413228,95277.0,95269.0,0.052432]
[1732764440981,0.413228,95277.0,95259.0,0.3608]
[1732764441189,0.413228,95277.0,95263.0,0.052436]
[1732764441383,0.417228,95277.0,95259.0,0.3608]
[1732764441690,0.418228,95277.0,95276.0,0.00408423]
[1732764443179,0.44407443,95277.0,95276.0,8.423e-05]
[1732764443478,0.44907443,95277.0,95276.0,8.423e-05]
[1732764443886,0.44607443,95277.0,95276.0,8.423e-05]
[1732764444185,0.45007443,95277.0,95276.0,8.423e-05]
[1732764444377,0.03684643,95277.0,95276.0,0.36088423]
[1732764444579,0.02032555,95277.0,95276.0,0.67576423]
[1732764444983,0.0330748,95297.0,95276.0,0.67576423]
[1732764445185,0.0330748,95297.0,95280.0,0.10579281]
[1732764445384,0.0330748,95297.0,95281.0,0.1768]
[1732764445580,0.052428,95277.0,95276.0,8.423e-05]
[1732764446281,0.367308,95277.0,95276.0,8.423e-05]
[1732764446485,0.367308,95277.0,95246.0,0.1768]
[1732764446486,0.052439,95258.0,95246.0,0.1768]
[1732764446685,0.052439,95258.0,95243.0,0.0015748]
[1732764446686,0.3608,95259.0,95243.0,0.0015748]
[1732764446885,0.052441,95254.0,95243.0,0.0540218]
[1732764447191,0.052443,95251.0,95243.0,0.0540218]
[1732764447581,0.04902088,95258.0,95247.0,0.3608]
[1732764447791,0.05244,95256.0,95247.0,0.3608]
[1732764447981,0.001,95254.0,95245.0,0.052446]
[1732764449593,0.001,95254.0,95249.0,0.052443]
[1732764449890,0.001,95251.0,95249.0,0.052443]
[1732764450187,0.001,95251.0,95248.0,0.3608]
[1732764450393,0.052443,95250.0,95248.0,0.3608]
[1732764450987,0.001,95251.0,95249.0,0.004]
[1732764452190,0.052443,95250.0,95249.0,0.004]
[1732764452390,0.053443,95250.0,95248.0,0.3648]
[1732764452685,0.053443,95250.0,95249.0,0.009]
[1732764453284,0.053443,95250.0,95248.0,0.3648]
[1732764453486,0.054443,95250.0,95249.0,0.009]
[1732764453993,0.053443,95250.0,95249.0,0.009]
[1732764454192,0.053443,95250.0,95249.0,0.013]
[1732764454583,0.053443,95250.0,95249.0,0.004]
[1732764454783,0.001,95250.0,95248.0,0.3698]
[1732764454985,0.002,95250.0,95249.0,0.004]
[1732764456796,0.001,95250.0,95249.0,0.004]
[1732764456993,0.002,95250.0,95249.0,0.009]
[1732764457192,0.01213634,95250.0,95249.0,0.009]
[1732764457997,0.052446,95244.0,95243.0,0.0015748]
[1732764458292,0.06258234,95244.0,95243.0,0.0015748]
[1732764458987,0.052453,95233.0,95228.0,0.052455]
[1732764459190,0.052457,95224.0,95223.0,0.00157521]
[1732764459400,0.06259334,95224.0,95223.0,0.00157521]
[1732764460686,0.06359334,95224.0,95223.0,0.001]
[1732764461301,0.06459334,95224.0,95223.0,0.001]
[1732764461888,0.01213634,95224.0,95223.0,0.001]
[1732764462193,0.00101611,95224.0,95223.0,0.001]
[1732764462894,0.01120518,95224.0,95223.0,0.001]
[1732764463493,0.37200518,95224.0,95223.0,0.001]
[1732764463797,0.42070769,95224.0,95223.0,0.001]
[1732764464591,0.052459,95221.0,95220.0,0.00102289]
[1732764464794,0.052461,95217.0,95216.0,0.000125]
[1732764465086,0.06265007,95217.0,95216.0,0.000125]
[1732764465685,0.05247,95202.0,95201.0,6.666e-05]
[1732764466291,0.06233264,95202.0,95201.0,6.666e-05]
[1732764467304,0.00986264,95202.0,95201.0,6.666e-05]
[1732764467691,0.00986264,95202.0,95201.0,0.05253666]
[1732764467893,0.00986264,95202.0,95201.0,6.666e-05]
[1732764468997,0.04166264,95202.0,95201.0,6.666e-05]
[1732764469601,0.0318,95202.0,95201.0,6.666e-05]
[1732764469804,0.04163248,95202.0,95201.0,6.666e-05]
[1732764470291,0.31512,95201.0,95187.0,0.3608]
[1732764470495,0.052477,95189.0,95187.0,0.3608]
[1732764470696,0.04273248,95188.0,95187.0,0.3608]
[1732764471207,0.04273248,95188.0,95171.0,0.0296]
[1732764471208,0.052485,95174.0,95171.0,0.052486]
[1732764471401,0.00954936,95173.0,95172.0,0.052486]
[1732764472695,0.052474,95193.0,95166.0,0.0333]
[1732764473009,0.001,95189.0,95188.0,0.052477]
[1732764473305,0.01061744,95189.0,95188.0,0.052477]
[1732764473494,0.00961744,95189.0,95188.0,0.052477]
[1732764474303,0.01061744,95189.0,95186.0,0.3608]
[1732764474495,0.06209444,95188.0,95186.0,0.3608]
[1732764474696,0.052481,95181.0,95176.0,0.3608]
[1732764474903,0.18621744,95180.0,95176.0,0.3608]
[1732764475094,0.00961744,95179.0,95178.0,0.052483]
[1732764476310,0.00925681,95179.0,95176.0,0.3608]
[1732764476496,0.00925681,95178.0,95176.0,0.3608]
[1732764476701,0.052482,95180.0,95176.0,0.3608]
[1732764476702,0.00925681,95177.0,95176.0,0.3608]
[1732764477709,0.00925681,95177.0,95176.0,0.413284]
[1732764477910,0.001,95178.0,95176.0,0.413284]
[1732764479101,0.00946876,95177.0,95176.0,0.413284]
[1732764479503,0.01046876,95177.0,95176.0,0.413284]
[1732764480507,0.01146876,95177.0,95176.0,0.413284]
[1732764481212,0.01146876,95177.0,95176.0,0.203284]
[1732764481614,0.002,95177.0,95176.0,0.203284]
[1732764482327,0.01186833,95177.0,95176.0,0.203284]
[1732764484106,0.01086833,95177.0,95176.0,0.203284]
[1732764484413,0.01186833,95177.0,95176.0,0.203284]
[1732764484806,0.01186833,95177.0,95176.0,0.052484]
[1732764487207,0.02765767,95177.0,95165.0,0.3608]
[1732764487416,0.01594584,95166.0,95165.0,0.3608]
[1732764487610,0.04160351,95166.0,95165.0,0.3608]
[1732764487918,0.02565767,95166.0,95165.0,0.3608]
[1732764488413,0.03222083,95166.0,95158.0,0.0039]
[1732764488620,0.03222083,95165.0,95158.0,0.056394]
[1732764488915,0.0325306,95164.0,95162.0,0.052491]
[1732764489113,0.0325306,95163.0,95162.0,0.052491]
[1732764489308,0.0325306,95163.0,95158.0,0.0039]
[1732764489510,0.2088506,95162.0,95161.0,0.052492]
[1732764490207,0.20228657,95162.0,95161.0,0.052492]
[1732764491013,0.02596657,95162.0,95161.0,0.052492]
[1732764491214,0.02696657,95162.0,95161.0,0.052492]
[1732764491419,0.22024666,95162.0,95161.0,0.052492]
[1732764491715,0.20428657,95162.0,95161.0,0.052492]
[1732764491920,0.02796657,95162.0,95161.0,0.052492]
[1732764492307,0.17832,95162.0,95161.0,0.052492]
[1732764492709,0.21041693,95162.0,95158.0,0.0039]
[1732764492906,0.03209693,95161.0,95158.0,0.0039]
[1732764493105,0.03209693,95160.0,95158.0,0.056394]
[1732764494112,0.02553281,95160.0,95158.0,0.056394]
[1732764494306,0.02653281,95160.0,95158.0,0.056394]
[1732764494924,0.02653281,95160.0,95158.0,0.417194]
[1732764495322,0.03309678,95160.0,95158.0,0.417194]
[1732764495713,0.03409678,95160.0,95158.0,0.417194]
[1732764496323,0.02753281,95160.0,95158.0,0.417194]
[1732764496824,0.00011879,95170.0,95159.0,0.49317626]
[1732764497133,0.00011879,95170.0,95169.0,0.413288]
[1732764497836,0.052493,95160.0,95159.0,0.00157626]
[1732764498123,0.53712,95160.0,95158.0,0.0039]
[1732764498925,0.17632,95159.0,95158.0,0.0039]
[1732764499914,0.17632,95159.0,95158.0,0.0049]
[1732764500310,0.3618,95160.0,95158.0,0.0049]
[1732764500812,0.001,95159.0,95158.0,0.0059]
[1732764501008,0.001,95159.0,95158.0,0.0079]
[1732764501423,0.001,95159.0,95158.0,0.060394]
[1732764502619,0.001,95159.0,95158.0,0.0079]
[1732764503027,0.001,95159.0,95158.0,0.0059]
[1732764503215,0.001,95159.0,95158.0,0.0079]
[1732764503216,0.0347,95159.0,95158.0,0.0079]
[1732764503821,0.0337,95159.0,95158.0,0.0069]
[1732764504920,0.0337,95159.0,95147.0,0.00012]
[1732764505121,0.052497,95152.0,95147.0,0.00012]
[1732764505527,0.01599085,95156.0,95147.0,0.00012]
[1732764505723,0.0347,95159.0,95147.0,0.00012]
[1732764506032,0.01599081,95154.0,95153.0,0.052497]
[1732764506217,0.01599081,95155.0,95153.0,0.052497]
[1732764506422,0.17636,95158.0,95153.0,0.052497]
[1732764506817,0.19069772,95158.0,95153.0,0.052497]
[1732764507019,0.19069772,95158.0,95147.0,0.00212]
[1732764507222,0.052498,95151.0,95147.0,0.00112]
[1732764507420,0.052498,95150.0,95147.0,0.00112]
[1732764507623,0.001,95154.0,95147.0,0.00112]
[1732764507832,0.228857,95153.0,95147.0,0.00112]
[1732764508132,0.01433772,95152.0,95147.0,0.00112]
[1732764508724,0.052498,95150.0,95147.0,0.00012]
[1732764509031,0.00894238,95149.0,95147.0,0.00012]
[1732764509224,0.00894238,95148.0,95147.0,0.00012]
[1732764509419,0.06144138,95148.0,95147.0,0.00012]
[1732764509835,0.00894238,95148.0,95147.0,0.00012]
[1732764510020,0.18530238,95148.0,95147.0,0.00012]
[1732764510729,0.23780138,95148.0,95147.0,0.00012]
[1732764510922,0.2531391,95148.0,95147.0,0.00012]
[1732764511125,0.2006401,95148.0,95134.0,0.3608]
[1732764511331,0.052506,95135.0,95134.0,0.3608]
[1732764511529,0.06144838,95135.0,95134.0,0.3608]
[1732764511927,0.06144838,95135.0,95127.0,0.052511]
[1732764512142,0.00919781,95134.0,95128.0,0.05251]
[1732764512325,0.00919781,95133.0,95129.0,0.05251]
[1732764512721,0.00919781,95132.0,95129.0,0.05251]
[1732764512934,0.36999781,95131.0,95126.0,0.32955407]
[1732764513230,0.02391432,95130.0,95126.0,0.38206507]
[1732764513431,0.052511,95127.0,95126.0,0.31393243]
[1732764513731,0.052518,95114.0,95113.0,0.025]
[1732764513930,0.06171581,95114.0,95113.0,0.025]
[1732764514136,0.23807581,95114.0,95113.0,0.025]
[1732764514329,0.25260405,95114.0,95113.0,0.025]
[1732764514628,0.07624405,95114.0,95113.0,0.025]
[1732764514820,0.06171581,95114.0,95113.0,0.025]
[1732764515029,0.00919781,95114.0,95113.0,0.025]
[1732764515536,0.00919781,95114.0,95113.0,0.3858]
[1732764515728,0.00919781,95114.0,95113.0,0.4188]
[1732764516123,0.00919781,95114.0,95113.0,0.4491]
[1732764516324,0.01419781,95114.0,95113.0,0.4491]
[1732764517038,0.00919781,95114.0,95113.0,0.4491]
[1732764518231,0.00919781,95114.0,95113.0,0.0883]
[1732764519934,0.00919781,95114.0,95104.0,0.3608]
[1732764519935,0.01019781,95114.0,95104.0,0.34400471]
[1732764520136,0.01019781,95114.0,95102.0,0.052524]
[1732764520137,0.00919781,95113.0,95102.0,0.052524]
[1732764520336,0.00919781,95112.0,95103.0,0.052524]
[1732764520536,0.00919781,95111.0,95103.0,0.052524]
[1732764520725,0.00919781,95110.0,95101.0,0.3608]
[1732764520928,0.002,95114.0,95101.0,0.3608]
[1732764520929,0.00919781,95109.0,95104.0,0.052523]
[1732764521127,0.002,95114.0,95104.0,0.052523]
[1732764521329,0.00903038,95113.0,95104.0,0.052523]
[1732764521538,0.00903038,95112.0,95104.0,0.052523]
[1732764521837,0.00903038,95112.0,95101.0,0.3608]
[1732764521838,0.06155038,95111.0,95101.0,0.3608]
[1732764522038,0.00903038,95110.0,95101.0,0.3608]
[1732764522342,0.00903038,95110.0,95101.0,0.413325]
[1732764522535,0.00903038,95110.0,95102.0,0.052524]
[1732764522841,0.00903038,95109.0,95102.0,0.052524]
[1732764523036,0.00903038,95108.0,95103.0,0.052524]
[1732764523229,0.00903038,95107.0,95102.0,0.0322]
[1732764523426,0.001,95111.0,95106.0,0.052522]
[1732764523630,0.01458739,95118.0,95110.0,0.3608]
[1732764523831,0.18515713,95115.0,95110.0,0.3608]
[1732764524130,0.00911713,95114.0,95110.0,0.3608]
[1732764524531,0.00911713,95113.0,95110.0,0.3608]
[1732764524835,0.00911713,95112.0,95110.0,0.41332]
[1732764525035,0.00911713,95111.0,95110.0,0.41332]
[1732764525535,0.3608,95121.0,95110.0,0.3608]
[1732764525735,0.02380965,95120.0,95114.0,0.052518]
[1732764525943,0.00915765,95119.0,95110.0,0.45719865]
[1732764526142,0.09183167,95126.0,95118.0,0.3608]
[1732764526326,0.00916026,95125.0,95121.0,0.052514]
[1732764526530,0.00916026,95124.0,95122.0,0.0304]
[1732764526748,0.00916026,95123.0,95118.0,0.3608]
[1732764526932,0.002,95120.0,95119.0,0.052515]
[1732764527738,0.002,95120.0,95118.0,0.3608]
[1732764527739,0.09683167,95126.0,95118.0,0.3608]
[1732764527935,0.00907447,95125.0,95118.0,0.3608]
[1732764528237,0.06158747,95124.0,95112.0,0.0317]
[1732764528439,0.09683167,95126.0,95113.0,0.052518]
[1732764528641,0.00871212,95125.0,95119.0,0.3608]
[1732764528939,0.09683167,95126.0,95119.0,0.3608]
[1732764529144,0.00871196,95125.0,95120.0,0.052514]
[1732764529330,0.00871196,95124.0,95120.0,0.052514]
[1732764529537,0.00871196,95123.0,95120.0,0.052514]
[1732764529844,0.001,95125.0,95120.0,0.052514]
[1732764530032,0.00878524,95124.0,95120.0,0.052514]
[1732764530236,0.00878524,95123.0,95120.0,0.052514]
[1732764530529,0.00878524,95122.0,95120.0,0.052514]
[1732764530746,0.00878524,95121.0,95120.0,0.052514]
[1732764530941,0.00878524,95122.0,95120.0,0.052514]
[1732764531135,0.00878524,95121.0,95120.0,0.052514]
[1732764531334,0.00878524,95122.0,95120.0,0.052514]
[1732764531536,0.00878524,95121.0,95120.0,0.052514]
[1732764532338,0.0090181,95121.0,95120.0,0.052514]
[1732764535346,0.052518,95115.0,95110.0,0.36144]
[1732764535545,0.0090181,95114.0,95106.0,0.052522]
[1732764535737,0.0090181,95113.0,95105.0,0.3608]
[1732764535939,0.0090181,95112.0,95105.0,0.3608]
[1732764536242,0.01442896,95118.0,95105.0,0.3608]
[1732764536243,0.10107914,95111.0,95105.0,0.3608]
[1732764536444,0.0090181,95110.0,95105.0,0.3608]
[1732764536643,0.09206104,95111.0,95108.0,0.052521]
[1732764536644,0.10112505,95109.0,95108.0,0.052521]
[1732764536846,0.00903668,95109.0,95108.0,0.052521]
[1732764537149,0.18414941,95111.0,95108.0,0.228601]
[1732764537345,0.18414941,95111.0,95108.0,0.052521]
[1732764538048,0.18414941,95111.0,95109.0,0.05252]
[1732764538247,0.09206104,95111.0,95109.0,0.05252]
[1732764539939,0.0145986,95117.0,95109.0,0.05252]
[1732764540149,0.09212648,95118.0,95110.0,0.05252]
[1732764540353,0.052518,95115.0,95110.0,0.05252]
[1732764540551,0.09212648,95118.0,95105.0,0.53688]
[1732764540752,0.09212648,95118.0,95105.0,0.3608]
[1732764541455,0.09212648,95118.0,95113.0,0.052518]
[1732764541660,0.09212648,95118.0,95105.0,0.3608]
[1732764541951,0.01454921,95121.0,95116.0,0.052517]
[1732764542155,0.01454921,95123.0,95116.0,0.052517]
[1732764542548,0.06706221,95123.0,95116.0,0.052517]
[1732764542752,0.06706221,95123.0,95105.0,0.3608]
[1732764542753,0.01454921,95123.0,95105.0,0.3608]
[1732764542948,0.12302186,95112.0,95106.0,0.052522]
[1732764543147,0.0922662,95108.0,95106.0,0.052522]
[1732764543349,0.052522,95108.0,95105.0,0.3608]
[1732764544059,0.052522,95107.0,95102.0,0.05258143]
[1732764544654,0.06707121,95107.0,95102.0,0.05258143]
[1732764545047,0.052522,95107.0,95102.0,0.05258143]
[1732764545358,0.06698523,95107.0,95102.0,0.05258143]
[1732764545858,0.06698523,95107.0,95103.0,0.052524]
[1732764546651,0.01446323,95107.0,95105.0,0.052523]
[1732764546856,0.12302186,95110.0,95109.0,0.052521]
[1732764547753,0.07302186,95110.0,95109.0,0.052521]
[1732764547952,0.3934,95137.0,95136.0,0.052506]
[1732764548866,0.0326,95137.0,95136.0,0.052506]
[1732764549263,0.052496,95154.0,95133.0,0.3608]
[1732764549453,0.052496,95154.0,95141.0,0.052503]
[1732764549454,0.052497,95153.0,95141.0,0.052503]
[1732764549854,0.0322,95154.0,95141.0,0.052503]
[1732764550160,0.0155638,95149.0,95142.0,0.052502]
[1732764550458,0.0155638,95149.0,95138.0,0.17572]
[1732764550459,0.0322,95154.0,95143.0,0.05255943]
[1732764550666,0.3668,95145.0,95143.0,0.05255943]
[1732764551052,0.3758,95145.0,95143.0,0.05255943]
[1732764552169,0.3698,95145.0,95143.0,0.05255943]
[1732764552362,0.3758,95145.0,95143.0,0.05255943]
[1732764552662,0.006,95145.0,95143.0,0.41335943]
[1732764552862,0.015,95145.0,95144.0,0.31532]
[1732764553063,0.006,95145.0,95144.0,0.49104]
[1732764553368,0.18448319,95158.0,95157.0,0.052494]
[1732764553557,0.21523039,95169.0,95157.0,0.589014]
[1732764553759,0.21523039,95169.0,95168.0,0.413288]
[1732764553955,0.21523039,95169.0,95168.0,0.589008]
[1732764554460,0.3608,95183.0,95168.0,0.589008]
[1732764554856,0.09206308,95192.0,95169.0,0.49092]
[1732764555056,0.09206308,95192.0,95191.0,0.052476]
[1732764555257,0.3608,95203.0,95191.0,0.052476]
[1732764555459,0.3608,95203.0,95192.0,0.052475]
[1732764556068,0.3608,95203.0,95194.0,0.052474]
[1732764556367,0.413273,95195.0,95193.0,0.0001041]
[1732764556568,0.052485,95174.0,95168.0,0.008]
[1732764556761,0.413285,95174.0,95162.0,0.25031014]
[1732764557158,0.3608,95174.0,95162.0,0.25031014]
[1732764557376,0.3608,95164.0,95162.0,0.25031014]
[1732764557563,0.0311,95163.0,95162.0,0.25031014]
[1732764557756,0.0311,95163.0,95162.0,0.25035298]
[1732764558363,0.083591,95163.0,95162.0,0.25035298]
[1732764559463,0.0321,95163.0,95162.0,0.25035298]
[1732764559669,0.0321,95163.0,95162.0,4.284e-05]
[1732764559869,0.001,95163.0,95162.0,4.284e-05]
[1732764560070,0.002,95163.0,95162.0,0.36777484]
[1732764560271,0.003,95163.0,95162.0,0.05253484]
[1732764560466,0.003,95163.0,95162.0,0.22821484]
[1732764561169,0.002,95163.0,95162.0,0.22821484]
[1732764562377,0.001,95163.0,95162.0,0.22821484]
[1732764563783,0.001,95163.0,95162.0,0.23721484]
[1732764564171,0.001,95163.0,95162.0,0.24121484]
[1732764564564,0.001,95163.0,95162.0,0.55645484]
[1732764564770,0.001,95163.0,95162.0,0.24121484]
[1732764564967,0.3608,95173.0,95162.0,0.24121484]
[1732764564968,0.3608,95173.0,95171.0,0.052486]
[1732764565373,0.0326,95189.0,95166.0,0.3608]
[1732764565679,0.0326,95189.0,95179.0,0.09630054]
[1732764565869,0.3608,95192.0,95187.0,0.052478]
[1732764566070,0.3608,95192.0,95180.0,0.17564]
[1732764566376,0.3608,95202.0,95180.0,0.27194054]
[1732764566675,0.3608,95202.0,95191.0,0.052475]
[1732764566974,0.3608,95194.0,95182.0,0.3608]
[1732764567275,0.3608,95194.0,95187.0,0.052478]
[1732764567673,0.3608,95194.0,95189.0,0.052477]
[1732764567879,0.3608,95194.0,95182.0,0.3608]
[1732764568080,0.09173134,95199.0,95182.0,0.3608]
[1732764568275,0.09173134,95199.0,95195.0,0.052473]
[1732764568670,0.09173134,95199.0,95197.0,0.052472]
[1732764568871,0.09673134,95199.0,95190.0,0.052476]
[1732764569280,0.09673134,95199.0,95193.0,0.052474]
[1732764569480,0.09173134,95199.0,95193.0,0.052474]
[1732764569681,0.09473134,95199.0,95193.0,0.052474]
[1732764569884,0.003,95199.0,95193.0,0.052474]
[1732764570474,0.413269,95203.0,95193.0,0.052474]
[1732764570677,0.003,95199.0,95193.0,0.052474]